Cogmind - Beta 13 @@@ ROGUE MODE // 2024.04.19 @ 09:57:29 Player: Sweaty Result: Destroyed by G-47 Trooper with Particle Gun Performance ------------- Evolutions (2) 1000 Regions Visited (3) 600 Robots Destroyed (51) 255 Value Destroyed (1497) 1497 Prototype IDs (5) 100 Alien Tech Used (0) 0 Bonus (0) 0 TOTAL SCORE: 3452 Bonus ------- None Cogmind --------- Core Integrity 0/550 Matter 500/500 Energy 460/460 System Corruption 0% Temperature Cool (9) Movement Walking (330) Ox3 Location -8/Materials Parts ------- > --- POWER (2) -------- Heavy Ion Engine Heavy Ion Engine > --- PROPULSION (4) --- Aluminum Leg Aluminum Leg > --- UTILITY (3) ------ High-capacity Storage Unit High-capacity Matter Pod > --- WEAPON (2) ------- Particle Gun Katana > --- INVENTORY (20) --- Light Ion Engine Improved Ion Engine Aluminum Leg Aerolev Unit Beam Rifle Mace Peak State ------------ > --- POWER ------------ Heavy Ion Engine Heavy Ion Engine > --- PROPULSION ------- Light Treads Light Treads Armored Treads Armored Treads > --- UTILITY ---------- High-capacity Storage Unit High-capacity Matter Pod > --- WEAPON ----------- Heavy Assault Rifle Autogun > --- INVENTORY -------- Improved Ion Engine Improved Ion Engine Heavy Ion Engine Heavy Ion Engine Armored Treads Armored Treads Aluminum Leg Aluminum Leg Rocket Launcher Rocket Launcher Mace Katana Katana [Rating: 23] Favorites ----------- Power Heavy Ion Engine Engine Heavy Ion Engine Propulsion Light Treads Treads Light Treads Leg Aluminum Leg Utility High-capacity Storage Unit Storage High-capacity Storage Unit Weapon Grenade Launcher Energy Gun Particle Gun Ballistic Gun Light Assault Rifle Ballistic Cannon Light Cannon Launcher Grenade Launcher Impact Weapon Mace Slashing Weapon Katana Build | -11 -10 -9 -8 ------- Run | Yrd Mat Mat Mat Slots Evolved 4 | . . 2 2 Power 1 | . . 1 . Propulsion 2 | . . 1 1 Utility 1 | . . . 1 Weapon . | . . . . Parts Attached 54 | 5 8 23 18 Power 10 | 1 . 5 4 Engine 10 | 1 . 5 4 Core . | . . . . Reactor . | . . . . Propulsion 18 | 2 3 6 7 Treads 12 | . 3 6 3 Leg 6 | 2 . . 4 Wheel . | . . . . Hover . | . . . . Flight . | . . . . Utility 2 | . 2 . . Device . | . . . . Storage 2 | . 2 . . Processor . | . . . . Hackware . | . . . . Protection . | . . . . Artifact . | . . . . Weapon 24 | 2 3 12 7 Energy Gun 3 | 2 . . 1 Energy Cannon . | . . . . Ballistic Gun 6 | . . 4 2 Ballistic Cannon 3 | . 1 2 . Launcher 5 | . 2 1 2 Special Weapon . | . . . . Impact Weapon 4 | . . 4 . Slashing Weapon 3 | . . 1 2 Piercing Weapon . | . . . . Special Melee Weapon . | . . . . Unidentified Prototypes . | . . . . Parts Lost 16 | . . 5 11 Power 2 | . . 1 1 Propulsion 9 | . . 2 7 Utility . | . . . . Weapon 5 | . . 2 3 Highest Loss Streak 7 | . . 1 7 To Critical Strikes 1 | . . 1 . Average Slot Usage (%) 84 | . 80 91 72 Engine 16 | . 14 18 16 Treads 24 | . 24 31 9 Leg 4 | . 3 . 15 Storage 21 | . 23 22 18 Ballistic Gun 5 | . . 9 1 Ballistic Cannon 2 | . . 3 . Launcher 4 | . 13 1 . Impact Weapon 2 | . . 4 . Slashing Weapon 1 | . . . 7 Naked Turns . | . . . . Heaviest Build 66 | 7 50 66 66 Greatest Support 80 | 20 40 60 80 Greatest Overweight (x) 3 | . 2 1 3 Average Overweight (x) . | . . . 1 Largest Inventory Capacity 20 | 5 20 20 20 Average Capacity 19 | 5 18 20 20 Most Carried 16 | 5 7 16 14 Average Carried 7 | 1 4 8 7 Final Capacity 20 | 5 20 20 20 Final Carried 15 | . 5 15 6 Class Distribution -------------------- 91% | Mutant 8% | Scavenger-Mutant Dominant Class ---------------- Mutant | -10/Materials Mutant | -9/Materials Mutant | -8/Materials Resources | -11 -10 -9 -8 ----------- Run | Yrd Mat Mat Mat Matter Collected 1447 | 250 231 602 364 Remotely . | . . . . Salvage Created 1616 | 50 136 709 721 Parts 85 | 4 2 47 32 Haulers Intercepted . | . . . . Recyclers Shooed 1 | . . . 1 Parts Field Recycled . | . . . . Retrieved Matter . | . . . . Parts Self-Destructed . | . . . . Prevented . | . . . . Kills | -11 -10 -9 -8 ------- Run | Yrd Mat Mat Mat Combat Hostiles Destroyed 41 | 1 4 21 15 Melee 21 | . . 9 12 Guns 6 | 1 . 5 . Cannons 3 | . . 3 . AOE 9 | . 4 2 3 Classes Destroyed 9 | 1 . 5 3 Worker 3 | . . . 3 Builder 3 | . . 3 . Recycler 2 | . . . 2 Watcher 2 | . . 1 1 Swarmer 10 | . . 6 4 Grunt 19 | 1 4 6 8 Brawler 1 | . . 1 . Sentry 10 | . . 8 2 Heavy 1 | . . . 1 Best Kill Streak 8 | 1 2 4 8 Combat Bots Only 5 | 1 2 4 5 Max Kills in Single Turn 2 | 1 2 2 2 Gunslinging . | . . . . Exploded 2 | . 2 2 2 Melee 1 | . . 1 1 Uniques/NPCs Destroyed . | . . . . Combat | -11 -10 -9 -8 -------- Run | Yrd Mat Mat Mat Hostile Shots Fired 343 | 7 1 130 205 Missed 89 | 2 1 42 44 Damage Taken 4399 | 52 . 1434 2913 Core 752 | 12 . 190 550 Absorbed by Shields . | . . . . Regen/Repaired (Parts) 209 | . . 209 . Core Remaining (%) 80 | 95 95 52 . Volleys Fired 78 | 5 3 54 16 Largest 2 | 2 1 2 2 Hottest 80 | 80 30 58 56 Shots Fired 116 | 10 3 72 31 Gun 49 | 10 . 20 19 Cannon 40 | . . 40 . Launcher 27 | . 3 12 12 Special . | . . . . Kinetic 79 | . . 60 19 Thermal . | . . . . Explosive 27 | . 3 12 12 Electromagnetic 10 | 10 . . . Robot Hit Streak 10 | 5 3 7 10 Robot Miss Streak 4 | 2 . 3 4 Penetration Max . | . . . . Secondary Targets . | . . . . Shots Hit Robots 123 | 7 1 63 52 Core Hits 72 | 2 10 30 30 Critical Kills 2 | . . 2 . Critical Parts Destroyed 3 | . . 3 . Critical Strikes 10 | . . 7 3 Blast 2 | . . 2 . Smash 5 | . . 5 . Sever 3 | . . . 3 Melee Attacks 64 | . . 25 39 Impact 16 | . . 16 . Slashing 48 | . . 9 39 Piercing . | . . . . Sneak Attacks 3 | . . . 3 Combat Hostiles . | . . . . Follow-up Attacks . | . . . . Damage Inflicted 3628 | 90 243 1524 1771 Guns 479 | 90 . 179 210 Cannons 440 | . . 440 . Explosions 1074 | . 243 340 491 Melee 1630 | . . 560 1070 Ramming 5 | . . 5 . Kinetic 829 | . . 619 210 Thermal . | . . . . Explosive 1074 | . 243 340 491 Electromagnetic 90 | 90 . . . Impact 374 | . . 374 . Slashing 1256 | . . 186 1070 Piercing . | . . . . Highest Corruption 5 | . 2 5 . Average Corruption 3 | . 2 3 . Corruption Purged . | . . . . Corruption Blocked . | . . . . Effects 30 | . 4 26 . Message Errors 4 | . 1 3 . Matter Fused 8 | . 3 5 . Heat Flow Errors 3 | . . 3 . Energy Discharges 4 | . . 4 . Data Loss (minor) 5 | . . 5 . Data Loss (major) 2 | . . 2 . Misfires 3 | . . 3 . Alerts 1 | . . 1 . Overload Shots . | . . . . Overflow Damage 259 | . . 123 136 Projectiles 6 | . . 6 . Explosions 30 | . . 30 . Melee 223 | . . 87 136 Knockbacks 2 | . . 2 . Impact 1 | . . 1 . Kinetic 1 | . . 1 . Secondary . | . . . . Self-Inflicted Damage 122 | . . 106 16 Shots 4 | . . 3 1 Rammed 1 | . . 1 . Targets Rammed 2 | . . 2 . Kicked . | . . . . Crushed 1 | . . 1 . Highest Temperature 258 | 114 . 258 110 Average Temperature 60 | 60 . 68 36 Received Heat Transfer 1521 | 30 . 339 1152 Effects 1 | . . 1 . Energy Bleed 1 | . . 1 . Siege Activations . | . . . . Robots Corrupted . | . . . . Combat Hostiles . | . . . . Parts Fried 3 | . . 3 . Impact Corruptions 6 | . . 6 . Robots Melted . | . . . . Combat Hostiles . | . . . . Parts Melted . | . . . . Heat Transferred . | . . . . Parts Sabotaged . | . . . . Parts Stolen . | . . . . Parts Stripped . | . . . . Power Chain Reactions . | . . . . Alert | -11 -10 -9 -8 ------- Run | Yrd Mat Mat Mat Peak Influence 391 | 20 127 286 391 Initial 94 | . 13 . 94 Average 151 | 2 58 171 262 Maximum Alert Level 1 | . . 1 1 Low Security (%) 65 | 100 100 58 27 Level 1 34 | . . 41 72 Level 2 . | . . . . Level 3 . | . . . . Level 4 . | . . . . Level 5 . | . . . . High Security . | . . . . Max Security . | . . . . Squads Dispatched 5 | . . 2 3 Investigation 2 | . . 2 . Extermination . | . . . . Reinforcement 3 | . . . 3 Assault . | . . . . Garrison . | . . . . Intercept . | . . . . Searches Triggered . | . . . . Construction Impeded . | . . . . Haulers Reinforced . | . . . . Active Scanning Responses . | . . . . Cargo Convoy Interrupts . | . . . . Stealth | -11 -10 -9 -8 --------- Run | Yrd Mat Mat Mat Distress Signals 5 | . 1 3 1 Communications Jammed . | . . . . Distress Signals . | . . . . Times Spotted 58 | 1 2 29 26 Peak Tracking Total 8 | 1 2 5 8 Tactical Retreats 4 | . . . 4 Traps | -11 -10 -9 -8 ------- Run | Yrd Mat Mat Mat Traps Triggered 3 | . 2 1 . Indirectly . | . . . . Trap Hack Attempts . | . . . . Triggered . | . . . . Disarmed . | . . . . Reprogrammed . | . . . . Reused . | . . . . Traps Extracted . | . . . . Installed . | . . . . Triggered . | . . . . Machines | -11 -10 -9 -8 ---------- Run | Yrd Mat Mat Mat Machines Disabled . | . . . . Max in Single Turn . | . . . . Machines Repaired . | . . . . Machines Dismantled . | . . . . Machines Sabotaged . | . . . . Overloaded Fab Kills . | . . . . Hacking | -11 -10 -9 -8 --------- Run | Yrd Mat Mat Mat Machines Accessed 7 | . 3 3 1 Terminals 4 | . 3 1 . Fabricators . | . . . . Repair Stations 1 | . . 1 . Recycling Units 1 | . . 1 . Scanalyzers 1 | . . . 1 Garrison Access . | . . . . Total Hacks 21 | . 5 13 3 Successful 16 | . 5 8 3 Failed 5 | . . 5 . Catastrophic . | . . . . Database Lockouts . | . . . . Manual . | . . . . Terminals 7 | . 5 2 . Fabricators . | . . . . Repair Stations 5 | . . 5 . Recycling Units 6 | . . 6 . Scanalyzers 3 | . . . 3 Garrison Access . | . . . . Terminal Hacks 7 | . 5 2 . Prototype ID Bank 2 | . 1 1 . Alert Level 1 | . 1 . . Transport Status 1 | . . 1 . Hauler Manifests 1 | . 1 . . Registered Components 1 | . 1 . . Zone Layout 1 | . 1 . . Fabricator Hacks . | . . . . Repair Station Hacks 4 | . . 4 . Scan Component 2 | . . 2 . Repair 2 | . . 2 . Recycling Unit Hacks 2 | . . 2 . Recycle Component 1 | . . 1 . Retrieve Matter 1 | . . 1 . Scanalyzer 3 | . . . 3 Insert Component 1 | . . . 1 Analyze 2 | . . . 2 Garrison Access Hacks . | . . . . Unauthorized Hacks . | . . . . Terminals . | . . . . Fabricators . | . . . . Repair Stations . | . . . . Recycling Units . | . . . . Scanalyzers . | . . . . Garrison Access . | . . . . Data Cores Recovered . | . . . . Used . | . . . . Hacking Detections 2 | . . 2 . Full Trace Events 2 | . . 2 . Feedback Events . | . . . . Feedback Blocked . | . . . . Robot Schematics Acquired . | . . . . Robots Built . | . . . . Authchips . | . . . . Time . | . . . . Total Robot Build Rating . | . . . . Part Schematics Acquired 1 | . . . 1 Parts Built . | . . . . Authchips . | . . . . Time . | . . . . Total Part Build Rating . | . . . . Parts Repaired 2 | . . 2 . Time 52 | . . 52 . Parts Recycled 1 | . . 1 . Recycled Matter . | . . . . Retrieved Matter 61 | . . 61 . Retrieved Components . | . . . . Parts Scanalyzed 1 | . . . 1 Part Schematics Acquired 1 | . . . 1 Parts Damaged . | . . . . Bothacking | -11 -10 -9 -8 ------------ Run | Yrd Mat Mat Mat Used RIF Installer . | . . . . Robots Hacked . | . . . . Non-combat . | . . . . Combat . | . . . . Robot Hacks Applied . | . . . . Relay Couplers Released . | . . . . Fabnet Peak Effective % . | . . . . Robots Rewired . | . . . . Allies Hacked . | . . . . Hacks Repelled . | . . . . Allies | -11 -10 -9 -8 -------- Run | Yrd Mat Mat Mat Total Allies . | . . . . Largest Group . | . . . . Highest-Rated Group . | . . . . Highest-Rated Ally . | . . . . Total Orders . | . . . . Ally Attacks . | . . . . Total Damage . | . . . . Kills . | . . . . Allies Corrupted . | . . . . Allies Melted . | . . . . Intel | -11 -10 -9 -8 ------- Run | Yrd Mat Mat Mat Robot Analysis Total . | . . . . Derelict Logs Recovered . | . . . . Drone Launches . | . . . . Drone Recoveries . | . . . . Exploration | -11 -10 -9 -8 ------------- Run | Yrd Mat Mat Mat Turns Passed 2939 | 76 837 1483 543 Spaces Moved 1135 | 59 365 555 156 Core 49 | 49 . . . Treads 923 | . 300 555 68 Legs 163 | 10 65 . 88 Wheels . | . . . . Hover . | . . . . Flight . | . . . . Fastest Speed 50 | 50 120 160 165 Average Speed 208 | 61 222 208 233 Slowest Speed 330 | 120 320 243 330 Overloaded Moves . | . . . . Propulsion Burnouts . | . . . . Robots Hopped . | . . . . Cave-ins Triggered 1 | . . 1 . Exploration Rate (%) 35 | 7 65 55 16 Regions Visited 3 Branch Regions . Pre-discovered Areas . | . . . . Known Exits Taken . | . . . . Unknown Exits Taken 3 | 1 1 1 . Scrap Searched . | . . . . Spaces Dug . | . . . . Terrain Destroyed 161 | . 13 102 46 Melee . | . . . . Projectile . | . . . . AOE 161 | . 13 102 46 Terrain Rammed . | . . . . Walls Destroyed . | . . . . Machines Disabled . | . . . . Actions | -11 -10 -9 -8 --------- Run | Yrd Mat Mat Mat Total 1502 | 88 391 773 250 Wait 99 | 15 . 77 7 Move 1132 | 58 364 554 156 Hop . | . . . . Pick Up 53 | 5 11 29 8 Fast Attach . | . . . . Attach 37 | 5 6 12 14 Detach 3 | . 2 1 . Swap 17 | . 2 11 4 Drop 17 | . 3 8 6 Fire 78 | 5 3 54 16 Melee 64 | . . 25 39 Ram . | . . . . Kick . | . . . . Crush 2 | . . 2 . Escape Stasis . | . . . . Rewire . | . . . . Trap . | . . . . Miscellaneous . | . . . . Route ------- -11/Scrapyard -10/Materials (discovered 3 exits: *Mat x2 / [*Min]) -9/Materials (discovered 5 exits: *Mat x2 / [*Min x2] / [*Sto]) -8/Materials History --------- Turn | Location | Event 2 | -11/Scrapyard | Met Revision 17 30 | -11/Scrapyard | Discovered new exit (range 8) 77 | -11/Scrapyard | Entered Materials 311 | -10/Materials | Build established: Mutant 396 | -10/Materials | Discovered new exit (range 8) 657 | -10/Materials | Discovered new exit (range 10) 864 | -10/Materials | Discovered new exit (range 16) 914 | -10/Materials | Entered another Materials area 914 | -9/Materials | Evolved 2 slots: Power x1, Propulsion x1 1088 | -9/Materials | Discovered new exit (range 16) 1345 | -9/Materials | Discovered new exit (range 16) 1577 | -9/Materials | Discovered new exit (range 12) 1658 | -9/Materials | Repaired Lgt. Treads 1687 | -9/Materials | Repaired Lgt. Treads 1913 | -9/Materials | Crushed by falling debris 2099 | -9/Materials | Discovered new exit (range 16) 2342 | -9/Materials | Discovered new exit (range 13) 2397 | -9/Materials | Entered another Materials area 2397 | -8/Materials | Evolved 2 slots: Propulsion x1, Utility x1 2503 | -8/Materials | Core integrity fell below 50% 2525 | -8/Materials | Lost 7 parts (4n3w) 2545 | -8/Materials | Core integrity fell below 20% 2940 | -8/Materials | Destroyed by G-47 Trooper with Particle Gun Last Messages --------------- 02860_ Destroyed Com. Wheel. 02873_ S-10 Pest destroyed. 02883_ Sneak attack on K-01 Serf. 02883_ Destroyed Lgt. Ion Engine. 02883_ K-01 Serf destroyed. 02886_ R-06 Scavenger collects Wheel. 02890_ R-06 Scavenger collects Flight Unit. 02894_ Acquired Lgt. Ion Engine. 02901_ K-01 Serf collects debris. 02902_ R-06 Scavenger destroyed. 02905_ Sneak attack on K-01 Serf. 02905_ Destroyed Wheel. 02905_ K-01 Serf destroyed. 02916_ T-07 Excavator is excavating. 02917_ R-06 Scavenger collects Lgt. Ion Engine. 02920_ T-07 Excavator is excavating. 02929_ G-47 Trooper destroyed. 02933_ T-07 Excavator is excavating. 02933_ Aluminum Leg destroyed. 02937_ T-07 Excavator is excavating. Map ----- +----------------------------------------------------+ | ???????????????# # | | ???????????????# #######+# | | ???????????????### #### = | | ????????????????##### ####### ! | | ????????????????# # "" | | ????????????????# """ """ # "" | | ????????????????# """ """ # "" | | ????????????????# """ """ # ] | | ????????????????# """ """ ###### | | ????????????????# """ """ #????? | | ????????????????# #????? | | ????????????????####+###+######### | | ???????????????????# | | ???????????????????# | | ????????????########## | | ????????????# # | | ????????????# # | | ????????????# # | | ????????????# """ + ##### | | ????????????# """ # #???? | | ????????????#"S """ # #???? | | ????????????#""" """ # #???? | | ???######???#="" """ # #???? | | ?# # ##?#%=% % # #???? | | ?# t ###+######## #???? | | ??# @#!!% #???? | | ??# # !g=[[! #??? | | ??????### # """ +??? | | ????????### """ #### ###??? | | ??????????## """ ???? ????? | | ???????????# ?????##???? | | ???????????# ??????????? | | ???????????# """ ??????????? | | ???????????# """ "?????????? | | ???????????# """ #?????????? | | ???????????# ????#?????????? | | ???????????+ ?????????????? | | ???????????# ######?????????????? | | ???????????? #??????????????????? | | ????????????###??????????????????? | | ?????????????????????????????????? | | ?????????????????????????????????? | | ?????????????????????????????????? | | ?????????????????????????????????? | | ?????????????????????????????????? | | ?????????????????????????????????? | | | | | | | | | +----------------------------------------------------+ Best States ------------- Heat Dissipation 31 Energy Generation 23 Energy Capacity 460 Matter Stores 500 Matter Capacity 500 Sight Range 16 Terrain Scan Density 10 Evasion (%) 50 Recoil Reduction 4 Item Schematics ----------------- Aerolev Unit | -8/Materials | Scanalyzed Robot Schematics ------------------ None Fabricated ------------ Nothing Alien Tech Used ----------------- None Achievements -------------- Unlikely Earthworm Challenges ------------ None Game ------ Seed ZioniteAluminumImmobilizer Manual? 0 Play Time 00:33:19 Cumulative 1.9 hours Start 2024.04.19 @ 06:49:14 End 2024.04.19 @ 09:57:29 Sessions 3 Manual Loads 0 Difficulty Rogue Special Mode None Game No. 3 Rogue 3 Adventurer 0 Explorer 0 Win Type - Total 0 Types 0/0/0/0/0/0/0/0/0 Lore% 0 Gallery% 4 Achievement% 5 Wizard Run 0 Options --------- Layout 1 ASCII 0 Keyboard 0 Movement Mouse Keybinds 0 Fullscreen 1 Font 24/Smallcaps Map View 50x35 Zoom Use 0% Tactical HUD 1 Map Filters NONE Filters NONE Steam 1 RUN: a5fef487-0b25-4b71-b5a6-0e447b7d1db4